bitfinex/quotes_ETHUSD_20250808
["timestamp","ask_amount","ask_price","bid_price","bid_amount"]
[1754690981391,0.04,4038.9,4037.8,6.02659616]
[1754690981392,0.1,4038.5,4037.8,6.02659616]
[1754690981576,0.4713,4038.4,4037.8,9.89159616]
[1754690982179,0.4713,4038.4,4037.8,10.36229616]
[1754690982872,0.9917,4037.9,4037.8,6.02659616]
[1754690983472,1.0917,4037.9,4037.8,5.47659616]
[1754690983891,1.0917,4037.9,4037.8,3.0]
[1754690984125,0.1,4037.3,4037.0,3.864]
[1754690984291,0.1,4037.3,4037.2,2.47696423]
[1754690984496,0.1,4037.3,4037.2,5.47696423]
[1754690984875,0.1,4037.3,4037.2,3.02696423]
[1754690985071,1.0517,4037.3,4037.2,3.02696423]
[1754690986473,1.0517,4037.3,4037.2,2.47696423]
[1754690987974,1.0517,4037.3,4036.8,2.47715398]
[1754690988183,0.1,4036.9,4036.8,2.47715398]
[1754690988383,1.0517,4036.9,4036.8,2.47715398]
[1754690989124,0.1,4036.0,4035.9,6.34175192]
[1754690989308,0.1,4036.0,4035.9,9.89175192]
[1754690990110,0.1,4036.0,4035.9,6.89175192]
[1754690990692,0.4713,4036.3,4035.9,6.89175192]
[1754690990693,0.5713,4036.3,4036.2,3.02757791]
[1754690991206,0.1,4036.3,4036.2,10.01557791]
[1754690997693,0.09832289,4036.3,4036.2,10.01557791]
[1754691002325,0.22232289,4036.9,4036.8,2.47720967]
[1754691002529,0.09832289,4036.9,4036.8,2.47720967]
[1754691002691,1.05342289,4036.9,4036.8,0.124]
[1754691002903,1.17742289,4036.9,4036.8,2.47720967]
[1754691004544,1.17742289,4036.9,4036.7,2.4772521]
[1754691004723,0.9551,4036.8,4036.6,0.001]
[1754691005045,0.9551,4036.8,4036.6,2.47832609]
[1754691005245,0.9551,4036.7,4036.6,2.47832609]
[1754691006543,0.9551,4036.7,4036.6,0.001]
[1754691007656,4.11995467,4036.7,4036.6,0.001]
[1754691007858,3.43237103,4036.7,4036.6,0.001]
[1754691008014,0.9551,4036.7,4036.6,0.001]
[1754691009856,4.8181,4036.7,4036.6,0.001]
[1754691013857,0.22232289,4036.9,4036.6,0.001]
[1754691014065,3.863,4036.7,4036.6,2.47831833]
[1754691014931,4.3324,4036.7,4036.6,0.001]
[1754691015444,4.3324,4036.7,4036.6,2.4783324]
[1754691015645,4.3324,4036.7,4036.6,0.001]
[1754691015840,4.3324,4036.7,4036.6,2.4783324]
[1754691017065,4.3324,4036.7,4036.6,0.001]
[1754691017874,4.3324,4036.7,4036.6,2.4783324]
[1754691019181,3.863,4036.7,4036.6,2.4783324]
[1754691019865,3.863,4036.7,4036.6,0.001]
[1754691020440,4.3324,4036.7,4036.6,0.001]
[1754691020660,4.3324,4036.7,4036.6,2.4783324]
[1754691022457,4.3324,4036.7,4036.6,0.001]
[1754691023546,4.3324,4036.7,4036.6,2.4783324]
[1754691024186,4.36704229,4036.7,4035.8,0.001]
[1754691024381,2.47806908,4035.4,4034.4,0.001]
[1754691024582,10.97598265,4035.2,4034.4,0.001]
[1754691024878,13.17638976,4035.2,4034.4,0.001]
[1754691025192,16.41232966,4035.2,4034.4,0.001]
[1754691025344,17.30386467,4035.2,4035.1,1e-08]
[1754691025558,18.39282436,4035.2,4035.1,1e-08]
[1754691025764,19.19713067,4035.2,4035.1,1e-08]
[1754691026262,18.82931062,4035.2,4035.1,1e-08]
[1754691026576,19.490267,4035.2,4035.1,1e-08]
[1754691026765,9.96211988,4035.2,4035.1,1e-08]
[1754691026971,10.33151988,4035.2,4035.1,1e-08]
[1754691028793,7.04902166,4035.2,4035.1,1e-08]
[1754691028962,7.8647,4035.2,4035.1,1e-08]
[1754691029159,7.4953,4035.2,4035.1,1e-08]
[1754691029383,5.42969363,4035.2,4035.1,1e-08]
[1754691031904,4.766477,4035.2,4035.1,1e-08]
[1754691034595,7.24466891,4035.2,4035.1,1e-08]
[1754691034770,9.08879023,4035.2,4035.1,1e-08]
[1754691035900,6.61059832,4035.2,4035.1,1e-08]
[1754691037994,9.08879023,4035.2,4035.1,1e-08]
[1754691044717,8.61949023,4035.2,4035.1,1e-08]
[1754691048124,8.59749023,4035.2,4035.1,1e-08]
[1754691048423,6.11929832,4035.2,4035.1,0.44720001]
[1754691048593,5.37482132,4035.2,4035.1,0.44720001]
[1754691050119,4.0,4035.2,4035.1,0.00100001]
[1754691050419,4.09832289,4035.2,4035.1,0.91460001]
[1754691051415,4.09832289,4035.2,4035.1,0.44720001]
[1754691053196,4.09432289,4035.2,4035.1,0.44720001]
[1754691053400,3.996,4035.2,4035.1,0.91460001]
[1754691053799,4.09432289,4035.2,4035.1,0.91460001]
[1754691054214,4.09432289,4035.2,4035.1,0.44720001]
[1754691054413,4.62352377,4035.2,4035.1,0.44720001]
[1754691054834,4.09432289,4035.2,4035.1,0.44720001]
[1754691055117,4.62352377,4035.2,4035.1,0.44720001]
[1754691055918,4.09432289,4035.2,4035.1,0.44720001]
[1754691056232,4.62352377,4035.2,4035.1,0.44720001]
[1754691056398,4.09432289,4035.2,4035.1,0.44720001]
[1754691056592,4.62352377,4035.2,4035.1,0.44720001]
[1754691057492,4.52520088,4035.2,4035.1,0.44720001]
[1754691057697,4.62352377,4035.2,4035.1,0.44720001]
[1754691059724,4.52520088,4035.2,4035.1,0.44720001]
[1754691059934,4.62352377,4035.2,4035.1,0.44720001]
[1754691061402,4.09432289,4035.2,4035.1,0.44720001]
[1754691061602,4.62352377,4035.2,4035.1,0.44720001]
[1754691062315,4.09432289,4035.2,4035.1,0.44720001]
[1754691062628,4.62352377,4035.2,4035.1,0.44720001]
[1754691063296,4.09432289,4035.2,4035.1,0.44720001]
[1754691063702,3.996,4035.2,4035.1,0.44720001]
[1754691063895,4.09432289,4035.2,4035.1,0.44720001]
[1754691064695,4.62352377,4035.2,4035.1,0.44720001]
[1754691065029,4.09432289,4035.2,4035.1,0.44720001]
[1754691067729,4.62352377,4035.2,4035.1,0.44720001]
[1754691067929,4.09432289,4035.2,4035.1,0.44720001]
[1754691068847,4.62352377,4035.2,4035.1,0.44720001]
[1754691069153,4.09432289,4035.2,4035.1,0.44720001]
[1754691071325,4.62352377,4035.2,4035.1,0.00100001]
[1754691071517,4.09432289,4035.2,4035.1,0.00100001]
[1754691071725,0.22232289,4035.2,4035.1,0.00100001]
[1754691072048,4.08932289,4035.2,4035.1,0.00100001]
[1754691073822,4.61852377,4035.2,4035.1,0.00100001]
[1754691074023,4.08932289,4035.2,4035.1,0.45820001]
[1754691077925,4.08932289,4035.2,4035.1,0.00100001]
[1754691078129,8.64443487,4035.2,4035.1,0.00100001]
[1754691078317,9.44385603,4035.2,4035.1,0.00100001]
[1754691079443,9.07445603,4035.2,4035.1,0.00100001]
[1754691079619,8.93599125,4035.2,4035.1,0.00100001]
[1754691080240,7.82473487,4035.2,4035.1,0.00100001]
[1754691080419,8.48569125,4035.2,4035.1,0.00100001]
[1754691080627,8.93599125,4035.2,4035.1,0.00100001]
[1754691081229,7.82473487,4035.2,4035.1,0.00100001]
[1754691083949,5.34654296,4035.2,4035.1,0.00100001]
[1754691084520,5.34654296,4035.2,4035.1,0.46300001]
[1754691086759,4.61752377,4035.2,4035.1,0.46300001]
[1754691087055,4.61752377,4035.2,4035.1,0.94060001]
[1754691087217,4.08832289,4035.2,4035.1,0.94060001]
[1754691088148,4.08832289,4035.2,4035.1,3.41885333]
[1754691088345,4.08832289,4035.2,4035.1,2.94125333]
[1754691089063,3.96432289,4035.2,4035.1,3.41885333]
[1754691089256,3.96432289,4035.2,4035.1,4.85875176]
[1754691094693,3.96432289,4035.2,4035.1,3.41885333]
[1754691098980,4.08832289,4035.2,4035.1,3.41885333]
[1754691099183,4.08832289,4035.2,4035.1,0.00100001]
[1754691099360,4.08832289,4035.2,4035.1,2.47925333]
[1754691099361,4.56832289,4035.2,4035.1,2.47925333]
[1754691099562,4.93772289,4035.2,4035.1,0.00100001]
[1754691099762,5.43149518,4035.2,4035.1,0.00100001]
[1754691100384,4.93772289,4035.2,4035.1,0.00100001]
[1754691100900,4.56832289,4035.2,4035.1,0.00100001]
[1754691101961,4.08832289,4035.2,4035.1,2.47925333]
[1754691102800,3.96432289,4035.2,4035.1,2.47925333]
[1754691102974,4.08832289,4035.2,4035.1,2.94125333]
[1754691103181,4.08832289,4035.2,4035.1,3.41885333]
[1754691104883,4.08832289,4035.2,4035.1,2.94125333]
[1754691106701,4.08632289,4035.2,4035.1,2.94125333]
[1754691110608,4.08632289,4035.2,4035.1,0.00100001]
[1754691110806,5.04778217,4035.2,4035.1,0.00100001]
[1754691111105,8.155838,4035.2,4035.1,0.00100001]
[1754691111326,8.13101101,4035.2,4035.1,0.00100001]
[1754691111693,8.03201101,4035.2,4035.1,0.00100001]
[1754691112010,8.13101101,4035.2,4035.1,0.00100001]
[1754691112209,8.13101101,4035.2,4035.1,1e-08]
[1754691112210,11.81922064,4035.2,4035.1,1e-08]
[1754691112424,11.81922064,4035.2,4034.6,0.001]
[1754691112425,2.47849902,4034.7,4034.6,1e-08]
[1754691112593,2.47849902,4034.7,4034.4,0.001]
[1754691112594,2.47862188,4034.5,4034.4,0.001]
[1754691112924,10.03352242,4034.5,4034.4,0.001]
[1754691113093,10.00869543,4034.5,4034.4,0.001]
[1754691113277,11.25034349,4034.5,4034.4,0.001]
[1754691113477,10.58769543,4034.5,4034.4,0.001]
[1754691113681,12.7172231,4034.5,4034.4,0.001]
[1754691113889,12.05454066,4034.5,4034.4,0.001]
[1754691114334,12.71672739,4034.5,4034.4,0.001]
[1754691115215,11.91633103,4034.5,4034.4,0.001]
[1754691117214,11.81733103,4034.5,4034.4,0.001]
[1754691119823,11.83593103,4034.5,4034.4,0.001]
[1754691121527,11.30506711,4034.5,4034.4,0.001]
[1754691121714,11.83370434,4034.5,4034.4,0.001]
[1754691122422,11.30506711,4034.5,4034.4,0.001]
[1754691123031,10.80646711,4034.5,4034.4,0.001]
[1754691123407,7.80646711,4034.5,4034.4,0.001]
[1754691123604,7.90575611,4034.5,4034.4,0.001]
[1754691127803,4.04475611,4034.5,4034.4,0.001]
[1754691128126,6.43791088,4034.5,4034.4,0.001]
[1754691129023,6.43791088,4034.5,4034.4,0.4413]
[1754691129837,6.33862188,4034.5,4034.4,0.4413]
[1754691130220,6.33862188,4034.5,4034.4,0.001]
[1754691130426,6.33862188,4034.5,4034.4,0.9241]
[1754691131236,6.33862188,4034.5,4034.4,0.4413]
[1754691131439,7.33626543,4034.5,4034.4,0.4413]
[1754691133225,6.46162188,4034.5,4034.4,0.001]
[1754691133424,0.124,4034.5,4034.4,0.001]
[1754691133628,3.983,4034.5,4034.4,0.001]
[1754691133833,3.983,4034.5,4034.4,0.4413]
[1754691138135,6.46162188,4034.5,4034.4,0.4413]
[1754691138527,3.983,4034.5,4034.4,0.4413]
[1754691140503,4.51416389,4034.5,4034.4,0.4413]
[1754691142505,3.983,4034.5,4034.4,0.4413]
[1754691147348,4.51416389,4034.5,4034.4,0.4413]
[1754691147526,3.983,4034.5,4034.4,0.4413]
[1754691147725,4.51416389,4034.5,4034.4,0.4413]
[1754691147940,3.983,4034.5,4034.4,0.4413]
[1754691148153,4.51416389,4034.5,4034.4,0.4413]
[1754691148311,3.983,4034.5,4034.4,0.4413]
[1754691148628,4.51416389,4034.5,4034.4,0.4413]
[1754691148830,3.983,4034.5,4034.4,0.4413]
[1754691149032,4.51416389,4034.5,4034.4,0.4413]
[1754691149242,3.983,4034.5,4034.4,0.4413]
[1754691149546,4.51416389,4034.5,4034.4,0.4413]
[1754691149735,3.983,4034.5,4034.4,0.4413]
[1754691150048,4.51416389,4034.5,4034.4,0.4413]
[1754691150247,3.983,4034.5,4034.4,0.4413]
[1754691150545,4.51416389,4034.5,4034.4,0.4413]
[1754691150743,3.983,4034.5,4034.4,0.4413]
[1754691150920,4.51416389,4034.5,4034.4,0.4413]
[1754691151114,3.983,4034.5,4034.4,0.4413]
[1754691151321,4.51416389,4034.5,4034.4,0.4413]
[1754691151733,4.51416389,4034.5,4034.4,0.9404]
[1754691151935,4.51416389,4034.5,4034.4,0.4413]
[1754691170136,4.51416389,4034.5,4034.4,0.9404]
[1754691171371,4.51416389,4034.5,4034.4,3.41908332]
[1754691171372,4.50716389,4034.5,4034.4,3.41908332]
[1754691172443,4.50716389,4034.5,4034.4,0.9404]
[1754691172652,4.50716389,4034.5,4034.4,3.41908332]
[1754691174774,0.65516389,4034.5,4034.4,3.41908332]
[1754691175076,4.50716389,4034.5,4034.4,3.41908332]
[1754691180279,4.50716389,4034.5,4034.4,3.40478332]
[1754691180488,3.976,4034.5,4034.4,3.40478332]
[1754691180796,0.124,4034.5,4034.4,3.40478332]
[1754691181082,3.974,4034.5,4034.4,3.40478332]
[1754691184988,4.718456,4034.5,4034.4,3.40478332]
[1754691192417,4.718456,4034.5,4034.4,0.001]
[1754691192714,5.211656,4034.5,4034.4,0.001]
[1754691192899,4.718456,4034.5,4034.4,2.47968332]
[1754691193104,5.211656,4034.5,4034.4,2.47968332]
[1754691194217,4.718456,4034.5,4034.4,2.47968332]
[1754691195023,3.974,4034.5,4034.4,2.47968332]
[1754691195208,4.718456,4034.5,4034.4,2.91958332]
[1754691198256,4.718456,4034.5,4034.4,2.47968332]
[1754691201229,4.718456,4034.5,4034.4,0.001]
[1754691201541,8.54155577,4034.5,4034.4,0.001]
[1754691201742,9.07443049,4034.5,4034.4,0.001]
[1754691202649,6.59580861,4034.5,4034.4,0.001]
[1754691202875,6.22640861,4034.5,4034.4,0.001]
[1754691203056,6.22634307,4034.5,4034.4,0.001]
[1754691203551,6.59574307,4034.5,4034.4,0.001]
[1754691204171,9.07436495,4034.5,4034.4,0.001]
[1754691204537,6.59574307,4034.5,4034.4,0.001]
[1754691204733,6.22634307,4034.5,4034.4,0.001]
[1754691210175,5.73314307,4034.5,4034.4,0.001]
[1754691213165,5.24526518,4034.5,4034.4,0.001]
[1754691213362,4.50080918,4034.5,4034.4,0.4742]
[1754691213671,4.712514,4034.5,4034.4,0.4742]
[1754691213843,5.24532318,4034.5,4034.4,0.4742]
[1754691214048,5.24532318,4034.5,4034.4,2.95288332]
[1754691214553,5.24532318,4034.5,4034.4,0.9267]
[1754691215047,5.24532318,4034.5,4034.4,0.4742]
[1754691217862,5.24539107,4034.5,4034.4,0.4742]
[1754691219145,4.50087707,4034.5,4034.4,0.4742]
[1754691219345,4.712488,4034.5,4034.4,0.4742]
[1754691219571,5.24536507,4034.5,4034.4,0.4742]
[1754691222587,4.50087707,4034.5,4034.4,3.40538332]
[1754691222890,0.124,4034.5,4034.4,6.99799989]
[1754691223060,0.002,4034.6,4034.5,5.47862188]
[1754691223265,0.002,4034.6,4034.5,13.48916812]
[1754691223602,0.002,4034.6,4034.5,14.71945973]
[1754691223967,0.002,4034.6,4034.5,7.63461349]
[1754691229391,0.002,4034.6,4034.5,11.47361349]
[1754691232093,0.002,4034.6,4034.5,7.63461349]
[1754691232298,0.002,4034.6,4034.5,11.47261349]
[1754691232871,0.58362289,4034.6,4034.5,2.47862188]
[1754691233098,0.70762289,4034.6,4034.5,2.47862188]
[1754691233420,0.22432289,4034.6,4034.5,5.95182188]
[1754691233790,0.22432289,4034.6,4034.5,5.47862188]
[1754691233983,0.22432289,4034.6,4034.5,5.95182188]
[1754691234803,0.10032289,4034.6,4034.5,6.84032526]
[1754691235006,0.10032289,4034.6,4034.5,6.36712526]
[1754691235215,0.10032289,4034.6,4034.5,7.28272526]
[1754691235518,0.10032289,4034.6,4034.5,6.79902526]
[1754691237497,0.10032289,4034.6,4034.5,6.36712526]
[1754691237879,0.10032289,4034.6,4034.5,6.79902526]
[1754691238074,0.10032289,4034.6,4034.5,6.36712526]
[1754691239711,0.10032289,4034.6,4034.5,6.79902526]
[1754691239919,0.10032289,4034.6,4034.5,7.28272526]
[1754691242218,0.10032289,4034.6,4034.5,6.79902526]
[1754691242416,0.10032289,4034.6,4034.5,7.28272526]
[1754691242820,0.002,4034.6,4034.5,7.28272526]
[1754691243962,0.002,4034.6,4034.5,7.28372526]
[1754691247263,0.002,4034.6,4034.5,7.83372526]
[1754691247534,0.002,4034.6,4034.5,7.95772526]
[1754691254868,0.002,4034.6,4034.5,7.47402526]
[1754691255066,0.002,4034.6,4034.5,7.95772526]
[1754691255253,0.002,4034.6,4034.5,12.26772526]
[1754691259355,0.002,4034.6,4034.5,16.09872526]
[1754691259760,0.002,4034.6,4034.5,15.61502526]
[1754691260170,0.002,4034.6,4034.5,16.09872526]
[1754691260692,0.002,4034.6,4034.5,15.61502526]
[1754691261586,0.002,4034.6,4034.5,10.80212526]
[1754691261789,0.002,4034.6,4034.5,13.74462188]
[1754691262161,0.4994,4034.6,4034.5,13.74462188]
[1754691262975,0.4994,4034.6,4034.5,9.91362188]
[1754691263194,0.002,4034.6,4034.5,6.78962188]
[1754691263381,0.002,4034.6,4034.5,9.78962188]
[1754691263382,0.8688,4034.6,4034.5,9.78962188]
[1754691264090,0.4994,4034.6,4034.5,9.78962188]
[1754691264277,0.002,4034.6,4034.5,9.78962188]
[1754691264679,0.002,4034.6,4034.5,10.79192188]
[1754691264884,0.002,4034.6,4034.5,11.37082188]
[1754691271004,0.002,4035.1,4035.0,2.47831474]
[1754691271204,0.002,4035.2,4035.1,3.02825332]
[1754691271408,0.002,4035.2,4035.1,8.42445332]
[1754691271703,0.002,4035.2,4035.1,6.93545332]
[1754691274321,0.002,4035.5,4035.4,3.02806908]
[1754691274640,0.002,4035.5,4035.4,18.47736355]
[1754691275034,0.002,4035.5,4035.4,19.38456355]
[1754691275631,0.002,4035.5,4035.4,9.42906908]
[1754691275831,0.4806,4035.5,4035.4,9.42906908]
[1754691276531,0.4806,4035.5,4035.4,5.60206908]
[1754691276833,0.85,4035.5,4035.4,9.42906908]
[1754691276986,0.4806,4035.5,4035.4,5.47806908]
[1754691277191,0.002,4035.5,4035.4,9.30506908]
[1754691278003,0.002,4035.5,4035.4,9.42906908]
[1754691279722,0.002,4035.5,4035.4,9.42806908]
[1754691280724,0.002,4035.5,4035.4,9.88036908]
[1754691281724,0.002,4035.5,4035.4,10.30636908]
[1754691282033,0.002,4035.5,4035.4,10.88526908]
[1754691282925,0.002,4035.5,4035.4,10.43036908]
[1754691283230,0.002,4035.5,4035.4,9.97806908]
[1754691283821,0.002,4035.5,4035.4,10.43036908]
[1754691284896,0.002,4035.5,4035.4,6.60436908]
[1754691285097,0.002,4035.5,4035.4,10.42936908]
[1754691285527,0.002,4035.5,4035.4,6.60436908]
[1754691285727,0.002,4035.5,4035.4,10.42936908]
[1754691286835,0.002,4035.5,4035.4,10.88426908]
[1754691287207,1e-08,4035.5,4035.4,10.88426908]
[1754691292934,1e-08,4035.5,4035.4,10.88226908]
[1754691293236,1e-08,4035.7,4035.6,6.02794627]
[1754691293438,1e-08,4035.7,4035.6,18.34824074]
[1754691293608,1e-08,4035.7,4035.6,19.25544074]
[1754691294332,1e-08,4035.9,4035.8,6.02782347]
[1754691294533,0.002,4036.1,4036.0,3.02770069]
[1754691294735,0.002,4036.1,4036.0,18.34699516]
[1754691294938,0.002,4036.1,4036.0,19.28289516]
[1754691295308,1e-08,4036.1,4036.0,19.28289516]
[1754691296113,1e-08,4036.1,4036.0,19.40689516]
[1754691296339,1e-08,4036.5,4036.4,0.55]
[1754691296522,1e-08,4036.5,4036.4,18.34674962]
[1754691296722,1e-08,4036.5,4036.4,19.40664962]
[1754691296940,1e-08,4036.5,4036.4,19.50582762]
[1754691297742,1e-08,4036.5,4036.4,19.01592762]
[1754691298326,1e-08,4036.5,4036.4,18.56992762]
[1754691299050,1e-08,4036.5,4036.4,19.01592762]
[1754691299247,1e-08,4036.5,4036.4,19.50582762]
[1754691301523,1e-08,4036.5,4036.4,19.01592762]
[1754691301850,1e-08,4036.5,4036.4,19.50582762]
[1754691302163,0.002,4036.8,4036.7,6.02727103]
[1754691302449,0.042,4036.9,4036.8,6.02720967]
[1754691302626,1e-08,4036.9,4036.8,14.97050414]
[1754691304156,1e-08,4036.9,4036.8,9.84720967]
[1754691304367,1e-08,4036.9,4036.8,10.29320967]
[1754691308338,1e-08,4036.9,4036.8,9.84620967]
[1754691308661,0.00200001,4036.9,4036.8,9.84620967]
[1754691308965,0.00200001,4036.9,4036.8,10.29220967]
[1754691309351,0.00200001,4036.9,4036.8,9.84620967]
[1754691311167,0.002,4037.4,4037.3,2.47690288]
[1754691311372,1e-08,4037.4,4037.3,18.91465666]
[1754691311537,1e-08,4037.4,4037.3,19.33588764]
[1754691314267,1e-08,4037.4,4037.3,19.45988764]
[1754691315570,4.63152173,4037.9,4037.3,17.47288476]
[1754691315874,1e-08,4038.0,4037.9,6.02653483]
[1754691316076,1e-08,4038.0,4037.9,11.11875272]
[1754691316370,1e-08,4038.0,4037.9,12.17865272]
[1754691316575,1e-08,4038.3,4038.2,6.02635084]
[1754691316876,1e-08,4038.3,4038.2,18.33964531]
[1754691317036,1e-08,4038.3,4038.2,18.90964531]
[1754691317239,1e-08,4038.3,4038.2,16.1312356]
[1754691317441,1e-08,4038.3,4038.2,19.4573356]
[1754691317649,0.09832289,4039.3,4038.9,0.55]
[1754691317840,0.09832289,4039.3,4039.2,6.02573776]
[1754691318051,0.09832289,4039.3,4039.2,9.96573776]
[1754691318052,0.55132289,4039.3,4039.2,9.96573776]
[1754691319158,0.04,4040.9,4039.8,3.02537006]
[1754691319374,0.3694,4040.6,4039.8,9.84137006]
[1754691319878,0.8624,4039.9,4039.8,9.84037006]
[1754691320767,0.8624,4039.9,4039.8,9.29037006]
[1754691320971,0.04,4039.9,4039.8,9.84037006]
[1754691321159,0.04,4039.9,4039.8,10.28637006]
[1754691322375,0.04,4039.9,4039.8,9.84037006]
[1754691322776,0.04,4039.9,4039.8,9.83937006]
[1754691324145,1e-08,4039.9,4039.8,6.02537006]
[1754691324480,1e-08,4039.9,4039.8,9.83937006]
[1754691324953,1e-08,4039.9,4039.8,10.27837006]
[1754691325577,1e-08,4039.9,4039.8,10.76067006]
[1754691326082,1e-08,4039.9,4039.8,10.27837006]
[1754691326685,1e-08,4039.9,4039.8,6.02537006]
[1754691326845,1e-08,4039.9,4039.8,9.83837006]
[1754691327053,1e-08,4039.9,4039.8,10.27737006]
[1754691327873,1e-08,4039.9,4039.8,6.02537006]
[1754691328077,1e-08,4039.9,4039.8,9.83837006]
[1754691329172,1e-08,4039.9,4039.8,9.96237006]
[1754691329373,1e-08,4039.9,4039.8,14.27237006]
[1754691329888,1e-08,4039.9,4039.8,14.27137006]
[1754691330885,0.00200001,4039.9,4039.8,14.27137006]
[1754691331288,0.83540001,4039.9,4039.8,13.72137006]
[1754691331452,0.00200001,4039.9,4039.8,5.47537006]
[1754691331647,0.83540001,4039.9,4039.8,9.41137006]
[1754691332381,0.46600001,4039.9,4039.8,9.41137006]
[1754691333591,0.83540001,4039.9,4039.8,9.41137006]
[1754691335806,0.46600001,4039.9,4039.8,9.41137006]
[1754691336481,0.46600001,4039.9,4039.8,9.41037006]
[1754691338310,0.83540001,4039.9,4039.8,5.47537006]
[1754691338612,0.95940001,4039.9,4039.8,5.47537006]
[1754691339893,0.59000001,4039.9,4039.8,5.47537006]
[1754691340298,0.12600001,4039.9,4039.8,9.28637006]
[1754691340670,0.00200001,4039.9,4039.8,9.28637006]
[1754691341101,0.00200001,4039.9,4039.8,9.72537006]
[1754691342502,1e-08,4039.9,4039.8,11.50785611]
[1754691342700,1e-08,4039.9,4039.8,12.11415611]
[1754691343599,1e-08,4039.9,4039.8,11.63085611]
[1754691343811,1e-08,4039.9,4039.8,13.11985611]
[1754691344007,1e-08,4039.9,4039.8,11.63085611]
[1754691344496,1e-08,4039.9,4039.8,11.19185611]
[1754691344677,1e-08,4039.9,4039.8,7.38185611]
[1754691344866,1e-08,4039.9,4039.8,11.19185611]
[1754691345470,1e-08,4039.9,4039.8,7.38185611]
[1754691345687,1e-08,4039.9,4039.8,6.83185611]
[1754691345887,1e-08,4039.9,4039.8,11.19185611]
[1754691347402,1e-08,4039.9,4039.8,11.63085611]
[1754691348395,1e-08,4039.9,4039.8,12.11315611]
[1754691352506,1e-08,4039.9,4039.8,8.30415611]
[1754691353030,1e-08,4039.9,4039.8,16.42315611]
[1754691354998,1e-08,4039.9,4039.8,16.39845611]
[1754691355393,1e-08,4039.9,4039.8,13.04115611]
[1754691355592,1e-08,4039.9,4039.8,16.84915611]
[1754691358488,1e-08,4039.9,4039.8,18.92135611]
[1754691360307,1e-08,4039.9,4039.8,16.84915611]
[1754691360511,1e-08,4039.9,4039.8,19.04954311]
[1754691363517,1e-08,4039.9,4039.8,18.59784311]
[1754691363892,1e-08,4039.9,4039.8,20.08684311]
[1754691364092,1e-08,4039.9,4039.8,18.59784311]
[1754691364293,1e-08,4039.9,4039.8,19.35700211]
[1754691365228,1e-08,4039.9,4039.8,19.72253611]
[1754691365805,1e-08,4039.9,4039.8,19.52022211]
[1754691366001,1e-08,4040.4,4040.3,3.02506373]
[1754691366201,1e-08,4040.4,4040.3,21.08507411]
[1754691366529,1e-08,4040.4,4040.3,21.65117411]
[1754691367027,1e-08,4040.4,4040.3,19.44447911]
[1754691367397,1e-08,4040.4,4040.3,19.90207911]
[1754691368325,0.04,4040.9,4040.8,3.02475747]
[1754691368635,0.04,4040.9,4040.8,22.63805194]
[1754691369030,0.04,4040.9,4040.8,23.20415194]
[1754691369690,0.04,4040.9,4040.8,19.39815194]
[1754691369897,0.04,4040.9,4040.8,23.20415194]
[1754691370200,0.04,4040.9,4040.8,23.75417285]
[1754691370393,1e-08,4040.9,4040.8,23.75417285]
[1754691371628,1e-08,4040.9,4040.8,24.21177285]
[1754691371827,1e-08,4041.2,4041.1,6.02457375]
[1754691372032,1e-08,4041.2,4041.1,28.84158775]
[1754691372353,1e-08,4041.2,4041.1,34.38944302]
[1754691372871,1e-08,4041.2,4041.1,34.37121805]
[1754691373366,1e-08,4041.2,4041.1,31.71716905]
[1754691373540,1e-08,4041.2,4041.1,26.02844402]
[1754691374271,1e-08,4041.2,4041.1,20.91059902]
[1754691374565,1e-08,4041.2,4041.1,12.71546102]
[1754691374813,0.82110001,4041.2,4041.1,6.87146102]
[1754691374940,0.82110001,4041.2,4041.1,10.67646102]
[1754691375126,0.82110001,4041.2,4041.1,9.40357375]
[1754691376976,0.82110001,4041.2,4041.1,6.40357375]
[1754691377278,0.82110001,4041.2,4041.1,9.27957375]
[1754691378160,0.82110001,4041.2,4041.1,5.47457375]
[1754691379245,0.82110001,4041.2,4040.6,2.47482178]
[1754691379579,0.124,4040.8,4040.6,2.47482178]
[1754691379883,0.8211,4040.7,4040.6,2.47482178]
[1754691380254,0.8211,4040.7,4040.5,5.47492612]
[1754691380447,0.8211,4040.6,4040.0,0.124]
[1754691380646,0.8211,4040.5,4040.3,2.47501494]
[1754691380902,0.124,4040.8,4040.4,2.47500247]
[1754691381396,0.124,4040.8,4040.5,2.47492863]
[1754691381592,0.8211,4040.7,4040.5,2.47492863]
[1754691381749,0.124,4040.8,4040.5,2.47492863]
[1754691382091,0.8211,4040.6,4040.5,2.47492863]
[1754691384587,0.8211,4040.6,4039.3,0.001]
[1754691384798,0.8211,4040.6,4039.4,2.47560932]
[1754691384799,3.33350012,4040.5,4039.4,2.47560932]
[1754691384946,3.65809079,4040.4,4039.6,2.47544079]
[1754691385149,0.8585,4040.4,4039.7,2.4754184]
[1754691385364,0.8585,4040.3,4039.7,2.4754184]
[1754691385762,0.8585,4040.2,4040.0,0.001]
[1754691386183,0.8585,4040.1,4040.0,0.001]
[1754691390195,1.57226828,4040.1,4040.0,0.001]
[1754691394670,1.69626828,4040.1,4040.0,0.001]
[1754691396184,1.32686828,4040.1,4040.0,0.001]
[1754691398275,1.69626828,4040.1,4040.0,0.001]
[1754691398687,1.32686828,4040.1,4040.0,0.001]
[1754691404202,0.83776828,4040.1,4040.0,0.001]
[1754691404679,1.32686828,4040.1,4040.0,0.001]
[1754691405312,0.124,4040.1,4040.0,0.001]
[1754691406192,0.6131,4040.1,4040.0,0.001]
[1754691411390,0.124,4040.1,4040.0,0.001]
[1754691411898,0.6131,4040.1,4040.0,0.001]
[1754691413822,0.124,4040.1,4040.0,0.001]
[1754691414529,0.65608773,4040.1,4040.0,0.001]
[1754691414827,0.124,4040.1,4040.0,0.001]
[1754691415223,0.65608773,4040.1,4040.0,0.001]
[1754691415533,0.124,4040.1,4040.0,0.001]
[1754691416032,0.65608773,4040.1,4040.0,0.001]
[1754691416241,0.124,4040.1,4040.0,0.001]
[1754691416612,0.65608773,4040.1,4040.0,0.001]
[1754691416814,0.124,4040.1,4040.0,0.001]